[Event "Titled Tuesday Blitz April 26 Late 2022"]
[White "Leitao, Rafael"]
[Black "Vujic, Mihailo"]
[WhiteFideId "2101246"]
[BlackFideId "918873"]
[WhiteElo "2609"]
[BlackElo "2256"]
[Result "1-0"]
[Round "05"]
[TimeControl "180+1"]
[Date "2022.04.26"]
[WhiteClock "0:00:29"]
[BlackClock "0:00:03"]

1. e4 {[%clk 0:03:00]}  e5 {[%clk 0:02:58]} 2. Nf3 {[%clk 0:03:00]}  Nc6 {[%clk 0:02:59]} 3. Bc4 {[%clk 0:02:59]}  Nf6 {[%clk 0:02:59]} 4. d3 {[%clk 0:02:59]}  Be7 {[%clk 0:02:58]} 5. O-O {[%clk 0:02:57]}  O-O {[%clk 0:02:59]} 6. Re1 {[%clk 0:02:57]}  d6 {[%clk 0:02:59]} 7. a4 {[%clk 0:02:57]}  Kh8 {[%clk 0:03:00]} 8. Nc3 {[%clk 0:02:51]}  h6 {[%clk 0:02:59]} 9. h3 {[%clk 0:02:38]}  Nh7 {[%clk 0:02:57]} 10. Nd5 {[%clk 0:02:34]}  f5 {[%clk 0:02:50]} 11. exf5 {[%clk 0:02:27]}  Bxf5 {[%clk 0:02:39]} 12. Nxe7 {[%clk 0:02:24]}  Qxe7 {[%clk 0:02:36]} 13. d4 {[%clk 0:02:06]}  e4 {[%clk 0:02:14]} 14. Nh2 {[%clk 0:01:42]}  Rae8 {[%clk 0:02:08]} 15. Be3 {[%clk 0:01:34]}  Qh4 {[%clk 0:02:06]} 16. Bf1 {[%clk 0:01:31]}  d5 {[%clk 0:01:34]} 17. Kh1 {[%clk 0:01:25]}  Ne7 {[%clk 0:01:24]} 18. Qd2 {[%clk 0:01:22]}  c6 {[%clk 0:01:02]} 19. b3 {[%clk 0:01:10]}  Ng6 {[%clk 0:00:56]} 20. c4 {[%clk 0:01:08]}  Be6 {[%clk 0:00:45]} 21. Rac1 {[%clk 0:01:05]}  Qf6 {[%clk 0:00:36]} 22. Be2 {[%clk 0:00:55]}  Nh4 {[%clk 0:00:35]} 23. Bf1 {[%clk 0:00:45]}  Ng5 {[%clk 0:00:30]} 24. cxd5 {[%clk 0:00:45]}  cxd5 {[%clk 0:00:28]} 25. Qe2 {[%clk 0:00:40]}  Kh7 {[%clk 0:00:19]} 26. Qh5 {[%clk 0:00:38]}  Nf5 {[%clk 0:00:16]} 27. Ng4 {[%clk 0:00:36]}  Qg6 {[%clk 0:00:12]} 28. Qxg6+ {[%clk 0:00:36]}  Kxg6 {[%clk 0:00:13]} 29. Ne5+ {[%clk 0:00:37]}  Kh7 {[%clk 0:00:13]} 30. Rc7 {[%clk 0:00:35]}  Nd6 {[%clk 0:00:11]} 31. Rec1 {[%clk 0:00:32]}  Ngf7 {[%clk 0:00:08]} 32. Be2 {[%clk 0:00:31]}  Rc8 {[%clk 0:00:04]} 33. Bh5 {[%clk 0:00:29]}  Rxc7 {[%clk 0:00:03]} 34. Rxc7 {[%clk 0:00:29]} 1-0


[Site "https://www.chess.com"]

[Event "Titled Tuesday Blitz April 26 Late 2022"]
[White "Licznerski, Lukasz"]
[Black "Bas Mas, Jose Joaquin"]
[WhiteFideId "1179250"]
[BlackFideId "22219064"]
[WhiteElo "2422"]
[BlackElo "2212"]
[Result "0-1"]
[Round "05"]
[TimeControl "180+1"]
[Date "2022.04.26"]
[WhiteClock "0:00:03"]
[BlackClock "0:00:14"]

1. e4 {[%clk 0:02:59]}  c5 {[%clk 0:02:59]} 2. Nf3 {[%clk 0:02:59]}  e6 {[%clk 0:03:00]} 3. d4 {[%clk 0:02:59]}  cxd4 {[%clk 0:03:01]} 4. Nxd4 {[%clk 0:03:00]}  a6 {[%clk 0:03:01]} 5. Bd3 {[%clk 0:03:00]}  Nc6 {[%clk 0:03:00]} 6. Nxc6 {[%clk 0:03:00]}  bxc6 {[%clk 0:03:00]} 7. O-O {[%clk 0:03:00]}  d5 {[%clk 0:02:55]} 8. Qe2 {[%clk 0:02:59]}  Nf6 {[%clk 0:02:54]} 9. e5 {[%clk 0:02:55]}  Nd7 {[%clk 0:02:53]} 10. c4 {[%clk 0:02:53]}  Nc5 {[%clk 0:02:45]} 11. Bc2 {[%clk 0:02:52]}  Be7 {[%clk 0:02:43]} 12. Nd2 {[%clk 0:02:30]}  a5 {[%clk 0:02:38]} 13. f4 {[%clk 0:02:21]}  g6 {[%clk 0:02:32]} 14. a4 {[%clk 0:01:54]}  Ba6 {[%clk 0:02:31]} 15. b3 {[%clk 0:01:55]}  Rb8 {[%clk 0:02:22]} 16. Rb1 {[%clk 0:01:52]}  O-O {[%clk 0:02:15]} 17. g4 {[%clk 0:01:27]}  Qb6 {[%clk 0:01:55]} 18. Kh1 {[%clk 0:00:59]}  f6 {[%clk 0:01:31]} 19. exf6 {[%clk 0:00:32]}  Bxf6 {[%clk 0:01:29]} 20. Nf3 {[%clk 0:00:27]}  Rfe8 {[%clk 0:01:17]} 21. Be3 {[%clk 0:00:26]}  Rbd8 {[%clk 0:01:08]} 22. Qf2 {[%clk 0:00:22]}  Be7 {[%clk 0:01:02]} 23. Ne5 {[%clk 0:00:16]}  Bb7 {[%clk 0:00:56]} 24. Nd3 {[%clk 0:00:14]}  Nxd3 {[%clk 0:00:53]} 25. Bxb6 {[%clk 0:00:11]}  Nxf2+ {[%clk 0:00:53]} 26. Rxf2 {[%clk 0:00:11]}  Ra8 {[%clk 0:00:50]} 27. Re1 {[%clk 0:00:08]}  Bd6 {[%clk 0:00:46]} 28. Rfe2 {[%clk 0:00:03]}  Bxf4 {[%clk 0:00:35]} 29. Rxe6 {[%clk 0:00:03]}  Rxe6 {[%clk 0:00:34]} 30. Rxe6 {[%clk 0:00:04]}  Kf7 {[%clk 0:00:34]} 31. Re1 {[%clk 0:00:03]}  Ra6 {[%clk 0:00:18]} 32. c5 {[%clk 0:00:02]}  Ra8 {[%clk 0:00:17]} 33. Rf1 {[%clk 0:00:02]}  g5 {[%clk 0:00:17]} 34. Bc7 {[%clk 0:00:03]}  Re8 {[%clk 0:00:15]} 35. Bxf4 {[%clk 0:00:03]}  gxf4 {[%clk 0:00:16]} 36. Bxh7 {[%clk 0:00:03]}  Kg7 {[%clk 0:00:15]} 37. Bf5 {[%clk 0:00:03]}  Re3 {[%clk 0:00:14]} 38. Rxf4 {[%clk 0:00:03]}  Rxb3 {[%clk 0:00:15]} 39. g5 {[%clk 0:00:03]}  Rb4 {[%clk 0:00:14]} 0-1


[Site "https://www.chess.com"]

[Event "Titled Tuesday Blitz April 26 Late 2022"]
[White "Maltsevskaya, Aleksandra"]
[Black "Bachmann, Axel"]
[WhiteFideId "24174041"]
[BlackFideId "3700488"]
[WhiteElo "2235"]
[BlackElo "2587"]
[Result "1-0"]
[Round "05"]
[TimeControl "180+1"]
[Date "2022.04.26"]
[WhiteClock "0:00:13"]
[BlackClock "0:00:01"]

1. e4 {[%clk 0:02:25]}  c5 {[%clk 0:02:58]} 2. Nf3 {[%clk 0:02:22]}  d6 {[%clk 0:02:59]} 3. d4 {[%clk 0:02:22]}  cxd4 {[%clk 0:03:00]} 4. Nxd4 {[%clk 0:02:23]}  Nf6 {[%clk 0:03:00]} 5. Nc3 {[%clk 0:02:24]}  a6 {[%clk 0:03:01]} 6. Bg5 {[%clk 0:02:24]}  Nbd7 {[%clk 0:03:00]} 7. Qd2 {[%clk 0:02:21]}  h6 {[%clk 0:02:52]} 8. Be3 {[%clk 0:02:13]}  Ng4 {[%clk 0:02:50]} 9. O-O-O {[%clk 0:02:12]}  Nxe3 {[%clk 0:02:49]} 10. Qxe3 {[%clk 0:02:13]}  e6 {[%clk 0:02:32]} 11. Bc4 {[%clk 0:01:57]}  b5 {[%clk 0:02:23]} 12. Bb3 {[%clk 0:01:56]}  Nc5 {[%clk 0:02:16]} 13. Kb1 {[%clk 0:01:46]}  Nxb3 {[%clk 0:02:13]} 14. cxb3 {[%clk 0:01:45]}  Bb7 {[%clk 0:02:08]} 15. f4 {[%clk 0:01:43]}  Be7 {[%clk 0:02:06]} 16. h4 {[%clk 0:01:40]}  Bxh4 {[%clk 0:01:55]} 17. f5 {[%clk 0:01:36]}  Bg5 {[%clk 0:01:39]} 18. Qg3 {[%clk 0:01:36]}  Qe7 {[%clk 0:01:27]} 19. Nf3 {[%clk 0:01:34]}  O-O-O {[%clk 0:01:20]} 20. fxe6 {[%clk 0:01:27]}  fxe6 {[%clk 0:01:19]} 21. Nxg5 {[%clk 0:01:15]}  Qxg5 {[%clk 0:01:15]} 22. Qf2 {[%clk 0:01:14]}  Qe7 {[%clk 0:01:01]} 23. Rhe1 {[%clk 0:01:00]}  Rhf8 {[%clk 0:00:57]} 24. Qd4 {[%clk 0:00:57]}  Kb8 {[%clk 0:00:55]} 25. a4 {[%clk 0:00:52]}  Qd7 {[%clk 0:00:28]} 26. Qb4 {[%clk 0:00:44]}  Bc6 {[%clk 0:00:24]} 27. Rd2 {[%clk 0:00:41]}  d5 {[%clk 0:00:16]} 28. exd5 {[%clk 0:00:38]}  exd5 {[%clk 0:00:17]} 29. Re7 {[%clk 0:00:38]}  Qd6 {[%clk 0:00:11]} 30. Qxd6+ {[%clk 0:00:33]}  Rxd6 {[%clk 0:00:12]} 31. Ne4 {[%clk 0:00:32]}  Rf1+ {[%clk 0:00:10]} 32. Ka2 {[%clk 0:00:32]}  Rg6 {[%clk 0:00:10]} 33. Nc5 {[%clk 0:00:30]}  bxa4 {[%clk 0:00:08]} 34. Nxa6+ {[%clk 0:00:29]}  Kc8 {[%clk 0:00:08]} 35. bxa4 {[%clk 0:00:27]}  Kd8 {[%clk 0:00:08]} 36. Ra7 {[%clk 0:00:26]}  Bxa4 {[%clk 0:00:07]} 37. Rxd5+ {[%clk 0:00:25]}  Ke8 {[%clk 0:00:06]} 38. Nc7+ {[%clk 0:00:26]}  Kf8 {[%clk 0:00:04]} 39. Rxa4 {[%clk 0:00:25]}  Rxg2 {[%clk 0:00:05]} 40. Nb5 {[%clk 0:00:16]}  Rff2 {[%clk 0:00:04]} 41. Rb4 {[%clk 0:00:11]}  Kg8 {[%clk 0:00:05]} 42. Nd4 {[%clk 0:00:11]}  Kh7 {[%clk 0:00:04]} 43. Rd7 {[%clk 0:00:11]}  h5 {[%clk 0:00:02]} 44. Rbb7 {[%clk 0:00:12]}  h4 {[%clk 0:00:02]} 45. Ne6 {[%clk 0:00:12]}  h3 {[%clk 0:00:01]} 46. Nxg7 {[%clk 0:00:13]}  Kh6 {[%clk 0:00:01]} 47. Rd6+ {[%clk 0:00:13]} 1-0


[Site "https://www.chess.com"]

[Event "Titled Tuesday Blitz April 26 Late 2022"]
[White "Meduri, Aakaash"]
[Black "Naroditsky, Daniel"]
[WhiteFideId "2032252"]
[BlackFideId "2026961"]
[WhiteElo "2096"]
[BlackElo "2608"]
[Result "0-1"]
[Round "05"]
[TimeControl "180+1"]
[Date "2022.04.26"]
[WhiteClock "0:00:14"]
[BlackClock "0:01:26"]

1. d4 {[%clk 0:03:00]}  Nf6 {[%clk 0:02:59]} 2. Bf4 {[%clk 0:03:01]}  c5 {[%clk 0:02:50]} 3. dxc5 {[%clk 0:02:59]}  Na6 {[%clk 0:02:50]} 4. Nc3 {[%clk 0:02:59]}  Nxc5 {[%clk 0:02:50]} 5. Nf3 {[%clk 0:02:57]}  d6 {[%clk 0:02:48]} 6. e3 {[%clk 0:02:57]}  g6 {[%clk 0:02:48]} 7. h4 {[%clk 0:02:48]}  Bg7 {[%clk 0:02:47]} 8. Be2 {[%clk 0:02:47]}  h6 {[%clk 0:02:44]} 9. Rb1 {[%clk 0:02:41]}  Bg4 {[%clk 0:02:40]} 10. Bb5+ {[%clk 0:02:36]}  Nfd7 {[%clk 0:02:38]} 11. Be2 {[%clk 0:02:29]}  Qa5 {[%clk 0:02:35]} 12. O-O {[%clk 0:02:07]}  Bxc3 {[%clk 0:02:32]} 13. bxc3 {[%clk 0:02:08]}  Qxc3 {[%clk 0:02:32]} 14. Bg3 {[%clk 0:01:52]}  O-O {[%clk 0:02:30]} 15. Nd4 {[%clk 0:01:16]}  Bxe2 {[%clk 0:02:25]} 16. Qxe2 {[%clk 0:01:16]}  a6 {[%clk 0:02:25]} 17. h5 {[%clk 0:01:10]}  g5 {[%clk 0:02:08]} 18. Nf5 {[%clk 0:01:02]}  Qf6 {[%clk 0:02:06]} 19. e4 {[%clk 0:01:02]}  b5 {[%clk 0:01:55]} 20. f4 {[%clk 0:01:02]}  Kh7 {[%clk 0:01:55]} 21. fxg5 {[%clk 0:01:00]}  hxg5 {[%clk 0:01:53]} 22. Rbd1 {[%clk 0:00:47]}  Qe6 {[%clk 0:01:48]} 23. h6 {[%clk 0:00:37]}  Nf6 {[%clk 0:01:43]} 24. e5 {[%clk 0:00:33]}  Nfe4 {[%clk 0:01:35]} 25. Bh2 {[%clk 0:00:23]}  Nc3 {[%clk 0:01:26]} 26. Qe3 {[%clk 0:00:15]}  Nxd1 {[%clk 0:01:26]} 27. Nd4 {[%clk 0:00:14]}  Nxe3 {[%clk 0:01:26]} 0-1


[Site "https://www.chess.com"]

[Event "Titled Tuesday Blitz April 26 Late 2022"]
[White "Menna Barreto, Felipe Kubiaki"]
[Black "Vovk, Orest"]
[WhiteFideId "2119757"]
[BlackFideId "14113490"]
[WhiteElo "2261"]
[BlackElo "2203"]
[Result "1-0"]
[Round "05"]
[TimeControl "180+1"]
[Date "2022.04.26"]
[WhiteClock "0:01:06"]
[BlackClock "0:00:05"]

1. e4 {[%clk 0:03:00]}  d6 {[%clk 0:02:58]} 2. d4 {[%clk 0:02:59]}  Nd7 {[%clk 0:02:59]} 3. c4 {[%clk 0:02:59]}  e5 {[%clk 0:02:59]} 4. d5 {[%clk 0:02:58]}  Ngf6 {[%clk 0:02:59]} 5. Nc3 {[%clk 0:02:58]}  Be7 {[%clk 0:02:58]} 6. Bd3 {[%clk 0:02:58]}  O-O {[%clk 0:02:57]} 7. Nge2 {[%clk 0:02:58]}  Nc5 {[%clk 0:02:57]} 8. Bc2 {[%clk 0:02:59]}  a5 {[%clk 0:02:57]} 9. O-O {[%clk 0:02:56]}  Ne8 {[%clk 0:02:55]} 10. Ng3 {[%clk 0:02:56]}  g6 {[%clk 0:02:54]} 11. Bh6 {[%clk 0:02:54]}  Ng7 {[%clk 0:02:54]} 12. a3 {[%clk 0:02:55]}  Bg5 {[%clk 0:02:50]} 13. Bxg5 {[%clk 0:02:48]}  Qxg5 {[%clk 0:02:51]} 14. b4 {[%clk 0:02:49]}  axb4 {[%clk 0:02:51]} 15. axb4 {[%clk 0:02:50]}  Rxa1 {[%clk 0:02:52]} 16. Qxa1 {[%clk 0:02:50]}  Na6 {[%clk 0:02:52]} 17. Qb2 {[%clk 0:02:46]}  f5 {[%clk 0:02:50]} 18. exf5 {[%clk 0:02:40]}  gxf5 {[%clk 0:02:46]} 19. f4 {[%clk 0:02:40]}  exf4 {[%clk 0:02:45]} 20. Nge2 {[%clk 0:02:39]}  Nh5 {[%clk 0:02:40]} 21. Nb5 {[%clk 0:02:33]}  Kf7 {[%clk 0:02:28]} 22. Nbd4 {[%clk 0:02:18]}  Rg8 {[%clk 0:02:25]} 23. Rf2 {[%clk 0:02:17]}  Bd7 {[%clk 0:02:16]} 24. Nf3 {[%clk 0:02:11]}  Qf6 {[%clk 0:02:11]} 25. Ned4 {[%clk 0:02:04]}  Re8 {[%clk 0:02:00]} 26. Qc3 {[%clk 0:02:03]}  Re3 {[%clk 0:01:58]} 27. Qd2 {[%clk 0:02:01]}  Ra3 {[%clk 0:01:47]} 28. Rf1 {[%clk 0:01:55]}  Qe7 {[%clk 0:01:34]} 29. Re1 {[%clk 0:01:55]}  Re3 {[%clk 0:01:32]} 30. Ra1 {[%clk 0:01:49]}  Kf6 {[%clk 0:01:21]} 31. Bd3 {[%clk 0:01:44]}  Nxb4 {[%clk 0:01:14]} 32. Qxb4 {[%clk 0:01:42]}  Rxd3 {[%clk 0:01:14]} 33. Qxb7 {[%clk 0:01:41]}  Rxd4 {[%clk 0:01:11]} 34. Qb2 {[%clk 0:01:37]}  Qe3+ {[%clk 0:00:53]} 35. Kh1 {[%clk 0:01:34]}  Kf7 {[%clk 0:00:53]} 36. Qxd4 {[%clk 0:01:32]}  Nf6 {[%clk 0:00:50]} 37. Qxe3 {[%clk 0:01:23]}  fxe3 {[%clk 0:00:50]} 38. Ng5+ {[%clk 0:01:23]}  Kg6 {[%clk 0:00:48]} 39. Ne6 {[%clk 0:01:24]}  Ne4 {[%clk 0:00:35]} 40. Nf8+ {[%clk 0:01:24]}  Kg5 {[%clk 0:00:32]} 41. Nxd7 {[%clk 0:01:25]}  Nd2 {[%clk 0:00:24]} 42. Nf8 {[%clk 0:01:18]}  Kf4 {[%clk 0:00:18]} 43. Ne6+ {[%clk 0:01:18]}  Ke4 {[%clk 0:00:19]} 44. Nxc7 {[%clk 0:01:18]}  f4 {[%clk 0:00:14]} 45. c5 {[%clk 0:01:14]}  dxc5 {[%clk 0:00:12]} 46. d6 {[%clk 0:01:14]}  Nb3 {[%clk 0:00:11]} 47. Re1 {[%clk 0:01:11]}  Nd4 {[%clk 0:00:10]} 48. d7 {[%clk 0:01:10]}  Nc6 {[%clk 0:00:10]} 49. Ne6 {[%clk 0:01:08]}  c4 {[%clk 0:00:08]} 50. d8=Q {[%clk 0:01:07]}  Nxd8 {[%clk 0:00:08]} 51. Nxd8 {[%clk 0:01:08]}  c3 {[%clk 0:00:07]} 52. Nc6 {[%clk 0:01:06]}  Kd3 {[%clk 0:00:05]} 53. Kg1 {[%clk 0:01:06]}  Kd2 {[%clk 0:00:04]} 54. Kf1 {[%clk 0:01:06]}  c2 {[%clk 0:00:05]} 55. Nd4 {[%clk 0:01:05]}  c1=Q {[%clk 0:00:05]} 56. Nb3+ {[%clk 0:01:06]} 1-0


[Site "https://www.chess.com"]

[Event "Titled Tuesday Blitz April 26 Late 2022"]
[White "Mikhalsky, Vladimir"]
[Black "Maksimovic, Bojan"]
[WhiteFideId "14144352"]
[BlackFideId "14408120"]
[WhiteElo "2301"]
[BlackElo "2448"]
[Result "0-1"]
[Round "05"]
[TimeControl "180+1"]
[Date "2022.04.26"]
[WhiteClock "0:00:53"]
[BlackClock "0:01:06"]

1. c4 {[%clk 0:02:58]}  d6 {[%clk 0:03:00]} 2. Nc3 {[%clk 0:02:55]}  e5 {[%clk 0:03:00]} 3. g3 {[%clk 0:02:55]}  g6 {[%clk 0:03:01]} 4. Bg2 {[%clk 0:02:55]}  Bg7 {[%clk 0:03:02]} 5. d3 {[%clk 0:02:55]}  Nf6 {[%clk 0:03:03]} 6. e3 {[%clk 0:02:55]}  Nc6 {[%clk 0:03:03]} 7. Nge2 {[%clk 0:02:55]}  O-O {[%clk 0:03:04]} 8. O-O {[%clk 0:02:53]}  Bf5 {[%clk 0:03:04]} 9. h3 {[%clk 0:02:51]}  Qd7 {[%clk 0:03:02]} 10. Kh2 {[%clk 0:02:50]}  Rae8 {[%clk 0:02:54]} 11. e4 {[%clk 0:02:46]}  Be6 {[%clk 0:02:53]} 12. g4 {[%clk 0:02:42]}  Bxg4 {[%clk 0:02:44]} 13. hxg4 {[%clk 0:02:42]}  Nxg4+ {[%clk 0:02:45]} 14. Kg1 {[%clk 0:02:41]}  f5 {[%clk 0:02:46]} 15. Bh3 {[%clk 0:02:32]}  fxe4 {[%clk 0:02:30]} 16. Ng3 {[%clk 0:02:18]}  Rf3 {[%clk 0:02:25]} 17. Ncxe4 {[%clk 0:02:06]}  Nd4 {[%clk 0:02:25]} 18. Ng5 {[%clk 0:02:02]}  Ref8 {[%clk 0:02:15]} 19. Be3 {[%clk 0:01:50]}  Bh6 {[%clk 0:01:21]} 20. Bxd4 {[%clk 0:01:28]}  Bxg5 {[%clk 0:01:19]} 21. Bc3 {[%clk 0:01:14]}  Be3 {[%clk 0:01:19]} 22. Kg2 {[%clk 0:00:59]}  Rxf2+ {[%clk 0:01:15]} 23. Rxf2 {[%clk 0:00:59]}  Rxf2+ {[%clk 0:01:16]} 24. Kg1 {[%clk 0:00:55]}  Rd2+ {[%clk 0:01:06]} 25. Kf1 {[%clk 0:00:55]}  Nh2+ {[%clk 0:01:05]} 26. Ke1 {[%clk 0:00:54]}  Rxd1+ {[%clk 0:01:05]} 27. Rxd1 {[%clk 0:00:53]}  Qxh3 {[%clk 0:01:06]} 0-1


[Site "https://www.chess.com"]

[Event "Titled Tuesday Blitz April 26 Late 2022"]
[White "Moraes, Nelson da Silva"]
[Black "Korchmar, Vasiliy"]
[WhiteFideId "2140772"]
[BlackFideId "24131750"]
[WhiteElo "2123"]
[BlackElo "2370"]
[Result "1-0"]
[Round "05"]
[TimeControl "180+1"]
[Date "2022.04.26"]
[WhiteClock "0:00:36"]
[BlackClock "0:00:03"]

1. e4 {[%clk 0:03:00]}  c5 {[%clk 0:02:59]} 2. Nf3 {[%clk 0:03:00]}  d6 {[%clk 0:02:59]} 3. d4 {[%clk 0:02:59]}  cxd4 {[%clk 0:03:00]} 4. Nxd4 {[%clk 0:02:58]}  Nf6 {[%clk 0:03:01]} 5. Nc3 {[%clk 0:02:57]}  Nc6 {[%clk 0:03:01]} 6. Be3 {[%clk 0:02:53]}  e5 {[%clk 0:02:58]} 7. Nf3 {[%clk 0:02:54]}  Be7 {[%clk 0:02:55]} 8. h3 {[%clk 0:02:54]}  h6 {[%clk 0:02:54]} 9. Bc4 {[%clk 0:02:53]}  O-O {[%clk 0:02:54]} 10. O-O {[%clk 0:02:52]}  Be6 {[%clk 0:02:53]} 11. Qe2 {[%clk 0:02:49]}  Rc8 {[%clk 0:02:50]} 12. Rad1 {[%clk 0:02:46]}  Nd4 {[%clk 0:02:21]} 13. Rxd4 {[%clk 0:02:20]}  exd4 {[%clk 0:02:21]} 14. Bxe6 {[%clk 0:02:19]}  fxe6 {[%clk 0:02:10]} 15. Nxd4 {[%clk 0:02:19]}  Qd7 {[%clk 0:02:06]} 16. Rd1 {[%clk 0:02:15]}  Rxc3 {[%clk 0:01:33]} 17. bxc3 {[%clk 0:02:12]}  Nxe4 {[%clk 0:01:32]} 18. Qg4 {[%clk 0:02:09]}  Nxc3 {[%clk 0:01:16]} 19. Nxe6 {[%clk 0:02:06]}  Rf7 {[%clk 0:01:16]} 20. Re1 {[%clk 0:01:57]}  Nd5 {[%clk 0:01:09]} 21. Bxh6 {[%clk 0:01:53]}  Bf6 {[%clk 0:01:02]} 22. Qc4 {[%clk 0:01:45]}  Nb6 {[%clk 0:00:56]} 23. Qg4 {[%clk 0:01:43]}  Re7 {[%clk 0:00:53]} 24. Bc1 {[%clk 0:01:36]}  Be5 {[%clk 0:00:43]} 25. Nf4 {[%clk 0:01:31]}  Qxg4 {[%clk 0:00:34]} 26. hxg4 {[%clk 0:01:31]}  Rc7 {[%clk 0:00:32]} 27. Re2 {[%clk 0:01:22]}  Rc4 {[%clk 0:00:32]} 28. g3 {[%clk 0:01:20]}  Ra4 {[%clk 0:00:30]} 29. c3 {[%clk 0:01:15]}  Rc4 {[%clk 0:00:19]} 30. Bd2 {[%clk 0:01:11]}  Na4 {[%clk 0:00:16]} 31. Nd5 {[%clk 0:01:02]}  Kf8 {[%clk 0:00:06]} 32. f3 {[%clk 0:00:56]}  Nxc3 {[%clk 0:00:05]} 33. Rxe5 {[%clk 0:00:54]}  dxe5 {[%clk 0:00:06]} 34. Nxc3 {[%clk 0:00:52]}  Rb4 {[%clk 0:00:04]} 35. Kf1 {[%clk 0:00:49]}  Rb2 {[%clk 0:00:04]} 36. Ke2 {[%clk 0:00:45]}  b5 {[%clk 0:00:04]} 37. Kd3 {[%clk 0:00:42]}  b4 {[%clk 0:00:03]} 38. Nd1 {[%clk 0:00:39]}  a5 {[%clk 0:00:03]} 39. Nxb2 {[%clk 0:00:36]} 1-0


[Site "https://www.chess.com"]

[Event "Titled Tuesday Blitz April 26 Late 2022"]
[White "Moral Garcia, Serafin"]
[Black "Romero Ruscalleda, Josep"]
[WhiteFideId "2201925"]
[BlackFideId "2231859"]
[WhiteElo "2228"]
[BlackElo "2318"]
[Result "1-0"]
[Round "05"]
[TimeControl "180+1"]
[Date "2022.04.26"]
[WhiteClock "0:00:44"]
[BlackClock "0:00:07"]

1. e4 {[%clk 0:03:00]}  g6 {[%clk 0:03:00]} 2. d4 {[%clk 0:02:57]}  Bg7 {[%clk 0:03:00]} 3. Nc3 {[%clk 0:02:58]}  d6 {[%clk 0:03:01]} 4. Be3 {[%clk 0:02:58]}  a6 {[%clk 0:03:00]} 5. f3 {[%clk 0:02:58]}  b5 {[%clk 0:03:00]} 6. Qd2 {[%clk 0:02:58]}  Nd7 {[%clk 0:03:00]} 7. Nh3 {[%clk 0:02:49]}  Nb6 {[%clk 0:02:50]} 8. Nf2 {[%clk 0:02:48]}  Bb7 {[%clk 0:02:38]} 9. a4 {[%clk 0:02:46]}  Nc4 {[%clk 0:02:29]} 10. Bxc4 {[%clk 0:02:44]}  bxc4 {[%clk 0:02:30]} 11. a5 {[%clk 0:02:42]}  Nf6 {[%clk 0:02:28]} 12. Ra4 {[%clk 0:02:40]}  c6 {[%clk 0:02:16]} 13. Rxc4 {[%clk 0:02:38]}  Qxa5 {[%clk 0:02:15]} 14. O-O {[%clk 0:02:24]}  O-O {[%clk 0:02:08]} 15. Nd5 {[%clk 0:02:21]}  Qd8 {[%clk 0:02:00]} 16. Nxf6+ {[%clk 0:02:20]}  Bxf6 {[%clk 0:02:00]} 17. Bg5 {[%clk 0:02:19]}  Bg7 {[%clk 0:01:53]} 18. Bh6 {[%clk 0:02:11]}  Rb8 {[%clk 0:01:40]} 19. Ra1 {[%clk 0:02:04]}  Qd7 {[%clk 0:01:31]} 20. Ra5 {[%clk 0:01:55]}  Rfc8 {[%clk 0:01:14]} 21. Bxg7 {[%clk 0:01:53]}  Kxg7 {[%clk 0:01:14]} 22. Ng4 {[%clk 0:01:52]}  d5 {[%clk 0:00:59]} 23. exd5 {[%clk 0:01:43]}  cxd5 {[%clk 0:00:58]} 24. Qh6+ {[%clk 0:01:43]}  Kg8 {[%clk 0:00:58]} 25. Rcc5 {[%clk 0:01:42]}  Qf5 {[%clk 0:00:42]} 26. Qe3 {[%clk 0:01:34]}  Qd7 {[%clk 0:00:33]} 27. h4 {[%clk 0:01:30]}  h5 {[%clk 0:00:33]} 28. Ne5 {[%clk 0:01:29]}  Qf5 {[%clk 0:00:27]} 29. Qb3 {[%clk 0:01:17]}  Rxc5 {[%clk 0:00:19]} 30. Rxc5 {[%clk 0:01:14]}  Qf4 {[%clk 0:00:09]} 31. Qb4 {[%clk 0:00:46]}  Qxh4 {[%clk 0:00:09]} 32. Nd7 {[%clk 0:00:44]}  Bc8 {[%clk 0:00:07]} 33. Nxb8 {[%clk 0:00:44]} 1-0


[Site "https://www.chess.com"]

[Event "Titled Tuesday Blitz April 26 Late 2022"]
[White "Nakada, Akira"]
[Black "Kohler, Aran"]
[WhiteFideId "30903920"]
[BlackFideId "1002856"]
[WhiteElo "1947"]
[BlackElo "2292"]
[Result "1-0"]
[Round "05"]
[TimeControl "180+1"]
[Date "2022.04.26"]
[WhiteClock "0:00:52"]
[BlackClock "0:00:12"]

1. c4 {[%clk 0:03:00]}  e5 {[%clk 0:02:56]} 2. Nc3 {[%clk 0:02:59]}  Nf6 {[%clk 0:02:55]} 3. Nf3 {[%clk 0:02:59]}  e4 {[%clk 0:02:53]} 4. Ng5 {[%clk 0:02:59]}  b5 {[%clk 0:02:52]} 5. d3 {[%clk 0:02:57]}  bxc4 {[%clk 0:02:50]} 6. dxc4 {[%clk 0:02:27]}  Bb4 {[%clk 0:02:43]} 7. Qc2 {[%clk 0:02:10]}  Qe7 {[%clk 0:02:36]} 8. Bf4 {[%clk 0:02:01]}  h6 {[%clk 0:02:28]} 9. Nh3 {[%clk 0:01:59]}  Na6 {[%clk 0:02:17]} 10. a3 {[%clk 0:01:56]}  Bxc3+ {[%clk 0:02:08]} 11. Qxc3 {[%clk 0:01:56]}  d6 {[%clk 0:01:53]} 12. g3 {[%clk 0:01:53]}  g5 {[%clk 0:01:45]} 13. Be3 {[%clk 0:01:53]}  Nc5 {[%clk 0:01:31]} 14. Bg2 {[%clk 0:01:43]}  Bf5 {[%clk 0:01:00]} 15. O-O {[%clk 0:01:36]}  Qe6 {[%clk 0:00:51]} 16. f4 {[%clk 0:01:08]}  Bxh3 {[%clk 0:00:44]} 17. Bxh3 {[%clk 0:01:09]}  Qxh3 {[%clk 0:00:33]} 18. Qxf6 {[%clk 0:01:08]}  O-O {[%clk 0:00:21]} 19. Bd4 {[%clk 0:00:55]}  Ne6 {[%clk 0:00:12]} 20. Qh8# {[%clk 0:00:52]} 1-0


[Site "https://www.chess.com"]